bitfinex/quotes_BTCUSD_20220303
["timestamp","ask_amount","ask_price","bid_price","bid_amount"]
[1646268126734,0.39789877,43976.0,43964.0,0.1825]
[1646268126933,0.056893,43970.0,43965.0,0.353151]
[1646268127631,0.056893,43970.0,43966.0,0.23284662]
[1646268127896,0.065997,43970.0,43967.0,0.353151]
[1646268128089,0.056893,43970.0,43967.0,0.353151]
[1646268128886,0.056893,43970.0,43968.0,2.42469946]
[1646268129286,0.058893,43970.0,43968.0,2.42469946]
[1646268130089,0.058893,43970.0,43966.0,0.23284662]
[1646268130290,0.058893,43970.0,43967.0,0.353151]
[1646268130494,0.056893,43970.0,43967.0,0.353151]
[1646268131287,0.056893,43970.0,43967.0,0.355151]
[1646268131736,0.065997,43970.0,43967.0,0.355151]
[1646268131936,0.065997,43970.0,43968.0,1.86925725]
[1646268132138,0.056893,43970.0,43969.0,0.353151]
[1646268133239,0.058893,43970.0,43969.0,0.353151]
[1646268134437,0.056893,43970.0,43969.0,0.353151]
[1646268134839,0.056893,43970.0,43960.0,0.11377672]
[1646268135140,0.056893,43970.0,43963.0,0.353151]
[1646268135393,0.056893,43970.0,43965.0,0.353151]
[1646268135394,0.059893,43970.0,43965.0,0.353151]
[1646268135602,0.059893,43970.0,43964.0,0.001]
[1646268135603,0.28412377,43968.0,43964.0,0.001]
[1646268135793,0.23678132,43965.0,43964.0,0.001]
[1646268135994,0.34363716,43967.0,43964.0,0.001]
[1646268136194,0.28412377,43965.0,43964.0,0.001]
[1646268136500,0.65,43964.0,43951.0,0.18931371]
[1646268136693,0.93414654,43964.0,43950.0,0.38531371]
[1646268137094,0.93414654,43964.0,43950.0,0.196]
[1646268137292,0.99505854,43964.0,43950.0,0.196]
[1646268137493,0.17992685,43952.0,43950.0,0.196]
[1646268137693,0.17992685,43952.0,43950.0,0.353151]
[1646268137897,0.17992685,43952.0,43949.0,0.11498489]
[1646268138100,0.17992685,43952.0,43949.0,0.00018489]
[1646268138494,0.17992685,43952.0,43946.0,0.353151]
[1646268138693,0.17992685,43952.0,43948.0,0.00018502]
[1646268139159,0.17992685,43952.0,43948.0,0.2611421]
[1646268139358,0.17992685,43952.0,43950.0,2.67375239]
[1646268139557,0.17992685,43952.0,43949.0,0.353151]
[1646268139858,0.17992685,43952.0,43948.0,0.00018502]
[1646268140257,0.056915,43953.0,43948.0,0.00018502]
[1646268140857,0.056915,43953.0,43947.0,0.353151]
[1646268141060,0.056915,43953.0,43948.0,0.23282311]
[1646268141259,0.26011159,43953.0,43948.0,0.00018502]
[1646268142160,0.26011159,43953.0,43943.0,0.353151]
[1646268142358,0.26011159,43953.0,43948.0,0.00018484]
[1646268142561,0.26011159,43953.0,43949.0,0.2447384]
[1646268143183,0.26011159,43953.0,43944.0,0.3]
[1646268143378,0.26011159,43953.0,43949.0,0.002]
[1646268144183,0.26011159,43953.0,43949.0,0.23089433]
[1646268144487,0.056915,43953.0,43949.0,0.22889433]
[1646268144681,0.056915,43953.0,43950.0,0.41005665]
[1646268145283,0.056915,43953.0,43950.0,0.41405665]
[1646268145484,0.056915,43953.0,43950.0,0.357151]
[1646268145883,0.1156,43961.0,43956.0,0.04115289]
[1646268146083,0.47547138,43963.0,43956.0,0.04115289]
[1646268146084,0.34553665,43960.0,43956.0,0.04115289]
[1646268146556,0.15,43958.0,43956.0,0.04115289]
[1646268146754,0.7411,43957.0,43956.0,0.04115289]
[1646268146952,0.0457,43957.0,43956.0,0.04115289]
[1646268147152,0.65,43956.0,43939.0,0.1167]
[1646268147354,0.113858,43953.0,43939.0,0.1167]
[1646268147551,0.18353355,43949.0,43939.0,0.31834214]
[1646268147752,0.056926,43947.0,43942.0,0.20842839]
[1646268147952,0.056926,43947.0,43943.0,0.353151]
[1646268148554,0.056926,43947.0,43943.0,0.348151]
[1646268149557,0.056926,43947.0,43943.0,0.53853399]
[1646268149754,0.056926,43947.0,43946.0,0.493151]
[1646268149956,0.05691,43954.0,43947.0,0.353284]
[1646268150155,0.1148,43956.0,43949.0,0.353284]
[1646268150402,0.196,43959.0,43949.0,0.353284]
[1646268150403,0.196,43959.0,43950.0,0.3]
[1646268150607,0.196,43959.0,43950.0,0.49174074]
[1646268150800,0.196,43959.0,43950.0,0.3]
[1646268151011,0.196,43959.0,43949.0,0.00020677]
[1646268151201,0.196,43959.0,43950.0,0.353284]
[1646268151399,0.50496606,43960.0,43950.0,0.357284]
[1646268151599,0.50496606,43960.0,43953.0,0.23638521]
[1646268151801,0.32742999,43960.0,43953.0,0.23638521]
[1646268152198,0.056904,43958.0,43954.0,0.353284]
[1646268152398,0.056904,43958.0,43953.0,0.23638521]
[1646268153002,0.056904,43958.0,43954.0,0.353284]
[1646268153802,0.056904,43958.0,43953.0,0.29628895]
[1646268154443,0.056904,43958.0,43953.0,0.29328895]
[1646268155342,0.056904,43958.0,43954.0,0.653284]
[1646268155545,0.1177,43964.0,43954.0,0.653284]
[1646268155745,0.1177,43964.0,43955.0,0.11379274]
[1646268155944,0.1177,43964.0,43956.0,0.353284]
[1646268156146,0.1177,43964.0,43957.0,0.3]
[1646268156343,0.19403382,43963.0,43958.0,0.353284]
[1646268156644,0.19403382,43963.0,43960.0,0.28197239]
[1646268156845,0.19403382,43963.0,43961.0,0.353284]
[1646268157246,0.19403382,43963.0,43956.0,0.0457]
[1646268157445,0.19403382,43963.0,43957.0,0.353284]
[1646268158098,0.37816838,43963.0,43957.0,0.353284]
[1646268158500,0.19403382,43963.0,43959.0,0.353284]
[1646268158900,0.19403382,43963.0,43956.0,0.353284]
[1646268159299,0.16359476,43956.0,43955.0,0.353284]
[1646268160801,0.056913,43957.0,43955.0,0.353284]
[1646268161001,0.15239241,43966.0,43955.0,0.353284]
[1646268161002,0.056903,43960.0,43955.0,0.353284]
[1646268161207,0.056903,43960.0,43955.0,0.653284]
[1646268161402,0.056903,43960.0,43955.0,0.656284]
[1646268161840,0.23612564,43960.0,43955.0,0.656284]
[1646268162640,0.23612564,43960.0,43955.0,0.653284]
[1646268162940,0.23612564,43960.0,43955.0,0.353284]
[1646268163139,0.23612564,43960.0,43955.0,0.653284]
[1646268163339,0.23612564,43960.0,43955.0,0.656284]
[1646268163943,0.23612564,43960.0,43955.0,0.356284]
[1646268164342,0.23612564,43960.0,43956.0,0.353284]
[1646268164542,0.23612564,43960.0,43949.0,0.11528498]
[1646268164543,0.28182564,43960.0,43949.0,0.11528498]
[1646268164743,0.28182564,43960.0,43950.0,0.353284]
[1646268164943,0.056918,43954.0,43950.0,0.353284]
[1646268165390,0.056918,43954.0,43950.0,0.6393637]
[1646268165589,0.056918,43954.0,43950.0,0.353284]
[1646268166888,0.056918,43954.0,43953.0,0.61886446]
[1646268169351,0.057918,43954.0,43953.0,0.61886446]
[1646268171252,0.001,43954.0,43953.0,0.62186446]
[1646268171455,0.056903,43959.0,43953.0,0.62186446]
[1646268171653,0.056903,43959.0,43954.0,0.353284]
[1646268172250,0.056903,43959.0,43954.0,0.35319783]
[1646268173198,0.09178179,43959.0,43954.0,0.35319783]
[1646268175097,0.09178179,43959.0,43954.0,0.41009776]
[1646268175698,0.09178179,43959.0,43954.0,0.35319783]
[1646268175898,0.2810162,43959.0,43954.0,0.35319783]
[1646268176100,0.2810162,43959.0,43954.0,0.219677]
[1646268176553,0.09178179,43959.0,43954.0,0.219677]
[1646268177046,0.2810162,43959.0,43954.0,0.219677]
[1646268177445,0.2810162,43959.0,43954.0,0.221677]
[1646268177645,0.056903,43959.0,43954.0,0.221677]
[1646268178047,0.056903,43959.0,43954.0,0.223677]
[1646268178848,0.056903,43959.0,43954.0,0.219677]
[1646268179053,0.18923441,43958.0,43954.0,0.219677]
[1646268179250,0.18923441,43957.0,43954.0,0.219677]
[1646268179649,0.18923441,43958.0,43954.0,0.221677]
[1646268180050,0.1168,43961.0,43954.0,0.221677]
[1646268180051,0.18923441,43959.0,43954.0,0.221677]
[1646268180491,0.23652879,43962.0,43954.0,0.221677]
[1646268180492,0.18923441,43960.0,43954.0,0.221677]
[1646268181297,0.18923441,43960.0,43954.0,0.27857083]
[1646268181498,0.18923441,43960.0,43954.0,0.219677]
[1646268181698,0.18923441,43959.0,43954.0,0.222677]
[1646268181896,0.18923441,43958.0,43954.0,0.222677]
[1646268182694,0.53652879,43961.0,43954.0,0.222677]
[1646268182899,0.009106,43959.0,43954.0,0.219677]
[1646268183295,0.29342779,43961.0,43954.0,0.219677]
[1646268185137,0.24682206,43957.0,43954.0,0.219677]
[1646268189508,0.24682206,43957.0,43954.0,0.46079591]
[1646268189800,0.05691,43957.0,43954.0,0.46079591]
[1646268192055,0.05691,43957.0,43954.0,0.219677]
[1646268192450,0.17094464,43956.0,43954.0,0.219677]
[1646268193252,0.17094464,43956.0,43954.0,0.43010252]
[1646268193651,0.05691,43957.0,43954.0,0.43010252]
[1646268194453,0.05691,43957.0,43954.0,0.219677]
[1646268195694,0.05691,43957.0,43955.0,0.25974177]
[1646268195891,0.05691,43957.0,43956.0,0.353235]
[1646268197691,0.05691,43957.0,43956.0,0.356235]
[1646268199148,0.05691,43957.0,43956.0,0.353235]
[1646268199751,0.05691,43957.0,43956.0,0.356235]
[1646268200555,0.113803,43963.0,43957.0,6.213e-05]
[1646268200755,0.23726652,43966.0,43958.0,0.265357]
[1646268200952,0.00073773,43966.0,43960.0,0.353197]
[1646268201151,0.28414654,43970.0,43961.0,0.0457]
[1646268201152,0.15162893,43970.0,43961.0,0.0457]
[1646268201351,0.15162893,43970.0,43969.0,0.27049488]
[1646268201551,0.28414654,43972.0,43970.0,0.219589]
[1646268201753,0.056886,43972.0,43969.0,0.27049488]
[1646268202452,0.06599,43972.0,43964.0,0.05688445]
[1646268202654,0.35013654,43972.0,43965.0,0.353243]
[1646268202895,0.23677403,43970.0,43965.0,0.353243]
[1646268203497,0.23677403,43970.0,43967.0,0.26069404]
[1646268203699,0.23677403,43971.0,43968.0,0.21951]
[1646268205699,0.23677403,43971.0,43968.0,0.21939835]
[1646268206302,0.23677403,43970.0,43968.0,0.21939835]
[1646268206546,0.23677403,43970.0,43968.0,0.15600961]
[1646268206744,0.23677403,43969.0,43968.0,0.15600961]
[1646268207849,0.003,43969.0,43968.0,0.15600961]
[1646268209049,0.59057227,43972.0,43958.0,0.1]
[1646268209246,0.59057227,43972.0,43959.0,0.353206]
[1646268209849,0.59057227,43972.0,43964.0,0.156119]
[1646268210314,0.35013654,43972.0,43964.0,0.156119]
[1646268210519,0.056886,43972.0,43964.0,0.156119]
[1646268211415,0.21849585,43971.0,43964.0,0.156119]
[1646268211815,0.21849585,43971.0,43964.0,0.158119]
[1646268212617,0.40720027,43971.0,43964.0,0.158119]
[1646268213021,0.40720027,43971.0,43964.0,0.156119]
[1646268213817,0.18870442,43971.0,43964.0,0.158119]
[1646268215050,0.39858253,43971.0,43964.0,0.156119]
[1646268215253,0.056886,43972.0,43964.0,0.156119]
[1646268215657,0.0568055,43972.0,43964.0,0.156119]
[1646268215853,0.0578055,43972.0,43964.0,0.156119]
[1646268216255,0.18985336,43971.0,43964.0,0.156119]
[1646268219003,0.34600229,43972.0,43964.0,0.156119]
[1646268219004,0.0568055,43972.0,43964.0,0.156119]
[1646268219405,0.0568055,43972.0,43965.0,0.17808122]
[1646268219603,0.0568055,43972.0,43966.0,0.353146]
[1646268220004,0.0568055,43972.0,43970.0,0.28635869]
[1646268220208,0.0568055,43972.0,43965.0,0.17808122]
[1646268220405,0.0568055,43972.0,43966.0,0.41009002]
[1646268221787,0.0568055,43972.0,43966.0,0.41209002]
[1646268221987,0.0659085,43972.0,43966.0,0.355206]
[1646268222390,0.22862608,43970.0,43966.0,0.355206]
[1646268222588,0.0659085,43972.0,43970.0,0.27672883]
[1646268223394,0.0568055,43972.0,43971.0,0.353206]
[1646268223792,0.0598055,43972.0,43970.0,0.27672883]
[1646268224491,0.27251901,43972.0,43970.0,0.27672883]
[1646268224692,0.0598055,43972.0,43970.0,0.27672883]
[1646268224991,0.0568055,43972.0,43970.0,0.27672883]
[1646268225190,0.0568055,43972.0,43971.0,0.353206]
[1646268225793,0.0578055,43972.0,43971.0,0.353206]
[1646268226194,0.0669085,43972.0,43970.0,0.27672883]
[1646268226395,0.0578055,43972.0,43970.0,0.27672883]
[1646268226699,0.0578055,43972.0,43971.0,0.353206]
[1646268226897,0.0528055,43972.0,43971.0,0.353206]
[1646268227094,0.0518055,43972.0,43971.0,0.353206]
[1646268227498,0.23665616,43974.0,43971.0,0.353206]
[1646268227795,0.40874654,43977.0,43971.0,0.355206]
[1646268227796,0.23665616,43976.0,43971.0,0.355206]
[1646268227995,0.23665616,43976.0,43971.0,0.54022681]
[1646268228197,0.23665616,43976.0,43975.0,0.25836839]
[1646268228396,0.23665616,43976.0,43975.0,0.17382358]
[1646268228600,0.23665616,43976.0,43971.0,0.18702081]
[1646268228796,0.23665616,43976.0,43972.0,0.353206]
[1646268229058,0.23665616,43975.0,43972.0,0.353206]
[1646268229463,0.23665616,43975.0,43973.0,0.21518356]
[1646268229764,0.056881,43977.0,43974.0,0.698906]
[1646268230162,0.056881,43977.0,43974.0,0.398906]
[1646268230563,0.056881,43977.0,43975.0,0.353206]
[1646268230766,0.29353716,43977.0,43974.0,0.0457]
[1646268230964,0.23665616,43976.0,43974.0,0.0457]
[1646268231565,0.19754182,43975.0,43974.0,0.0457]
[1646268233203,0.65723111,43975.0,43974.0,0.0457]
[1646268233405,0.89388727,43975.0,43974.0,0.0457]
[1646268233606,0.89388727,43975.0,43970.0,0.27672883]
[1646268233812,0.23665101,43974.0,43970.0,0.27672883]
[1646268234007,0.23665101,43973.0,43970.0,0.27672883]
[1646268235307,0.23665101,43972.0,43970.0,0.27672883]
[1646268235509,0.29354701,43972.0,43970.0,0.27672883]
[1646268235908,0.29654701,43972.0,43970.0,0.27672883]
[1646268237155,0.29354701,43972.0,43970.0,0.27672883]
[1646268237758,0.23665101,43971.0,43970.0,0.27672883]
[1646268238156,0.30565101,43972.0,43970.0,0.27672883]
[1646268238355,0.29654701,43972.0,43970.0,0.27672883]
[1646268239156,0.29354701,43972.0,43970.0,0.27672883]
[1646268239958,0.23665101,43971.0,43970.0,0.27672883]
[1646268240159,0.29354701,43972.0,43971.0,0.353206]
[1646268242004,0.066,43972.0,43971.0,0.353206]
[1646268242403,0.056896,43972.0,43971.0,0.353206]
[1646268244044,0.056896,43972.0,43971.0,0.354206]
[1646268244846,0.056896,43972.0,43971.0,0.156988]
[1646268245247,0.056896,43972.0,43971.0,0.353206]
[1646268245446,0.056896,43972.0,43971.0,0.155988]
[1646268245847,0.056896,43972.0,43971.0,0.353206]
[1646268246047,0.065999,43972.0,43971.0,0.353206]
[1646268246247,0.056896,43972.0,43971.0,0.353206]
[1646268247249,0.056896,43972.0,43971.0,0.354206]
[1646268248711,0.056896,43972.0,43971.0,0.353206]
[1646268249309,0.056896,43972.0,43971.0,0.354206]
[1646268249909,0.29368758,43972.0,43971.0,0.354206]
[1646268250611,0.29368758,43972.0,43971.0,0.353206]
[1646268250812,0.056896,43972.0,43971.0,0.653206]
[1646268251312,0.056896,43972.0,43971.0,0.656206]
[1646268251555,0.24631361,43972.0,43971.0,0.656206]
[1646268251757,0.18941761,43972.0,43971.0,0.85308572]
[1646268251958,0.18941761,43973.0,43971.0,0.85301008]
[1646268252160,0.18941761,43973.0,43972.0,0.44]
[1646268252357,0.18941761,43973.0,43972.0,0.595984]
[1646268252556,0.18941761,43974.0,43972.0,0.595984]
[1646268252757,0.23679158,43976.0,43973.0,0.92857937]
[1646268252957,0.1894061,43974.0,43973.0,0.7320821]
[1646268253157,0.1894061,43975.0,43973.0,0.7320821]
[1646268253358,0.1894061,43975.0,43974.0,0.455974]
[1646268253960,0.23679158,43976.0,43975.0,0.156686]
[1646268254562,0.34102554,43978.0,43975.0,0.156686]
[1646268254765,0.20231606,43976.0,43971.0,0.312683]
[1646268254960,0.18939922,43973.0,43971.0,0.312683]
[1646268255399,0.24628422,43973.0,43971.0,0.315683]
[1646268255603,0.18939922,43972.0,43971.0,0.315683]
[1646268255801,0.29363403,43973.0,43971.0,0.315683]
[1646268256003,0.23674903,43972.0,43971.0,0.315683]
[1646268256401,0.41703161,43972.0,43971.0,0.315683]
[1646268256700,0.41703161,43972.0,43971.0,0.312683]
[1646268256902,0.41704729,43972.0,43970.0,0.27672883]
[1646268257407,0.23876738,43972.0,43971.0,0.312689]
[1646268257801,0.002,43972.0,43971.0,0.312689]
[1646268258602,0.29365238,43973.0,43971.0,0.312689]
[1646268258804,0.23676738,43972.0,43970.0,0.27672883]
[1646268259057,0.23676738,43972.0,43971.0,0.312689]
[1646268260356,0.057885,43973.0,43970.0,0.27672883]
[1646268260556,0.28414654,43972.0,43970.0,0.27672883]
[1646268261153,0.21677041,43971.0,43970.0,0.27672883]
[1646268262559,0.72327117,43970.0,43965.0,0.24636584]
[1646268262824,0.18942922,43967.0,43966.0,0.312727]
[1646268263825,0.24632322,43968.0,43966.0,0.312727]
[1646268265424,0.24632322,43968.0,43966.0,0.315727]
[1646268265623,0.18942922,43967.0,43966.0,0.315727]
[1646268265823,0.18942922,43967.0,43966.0,0.60288413]
[1646268266025,0.056894,43968.0,43966.0,0.60288413]
[1646268266026,0.18942922,43968.0,43966.0,0.60288413]
[1646268266663,0.96005769,43970.0,43966.0,0.60288413]
[1646268266664,0.18942922,43969.0,43966.0,0.59988413]
[1646268266859,0.91270039,43970.0,43967.0,0.200792]
[1646268267057,0.91270039,43970.0,43968.0,0.36959382]
[1646268267864,0.91270039,43970.0,43969.0,0.1857]
[1646268267865,0.72327117,43970.0,43969.0,0.1857]
[1646268268160,0.72327117,43970.0,43969.0,0.358407]
[1646268269760,0.72327117,43970.0,43969.0,0.498407]
[1646268270305,0.72327117,43970.0,43969.0,0.358407]
[1646268270907,0.72315117,43970.0,43969.0,0.358407]
[1646268271307,0.72315117,43970.0,43969.0,0.498407]
[1646268272208,0.72309117,43970.0,43969.0,0.498407]
[1646268272407,0.72303117,43970.0,43969.0,0.498407]
[1646268273710,0.72303117,43970.0,43969.0,0.358407]
[1646268273911,0.72303117,43970.0,43969.0,0.312707]
[1646268274759,1.07454329,43970.0,43969.0,0.312707]
[1646268275158,1.08821909,43970.0,43969.0,0.312707]
[1646268275959,1.08721909,43970.0,43969.0,0.312707]
[1646268276161,1.26298484,43970.0,43969.0,0.312707]
[1646268276559,1.07355562,43970.0,43969.0,0.312707]
[1646268277561,0.89778987,43970.0,43969.0,0.312707]
[1646268278207,1.08718753,43970.0,43969.0,0.312707]
[1646268278805,0.36877295,43986.0,43981.0,0.01]
[1646268279010,0.33139886,43985.0,43982.0,0.358294]
[1646268279202,0.36977295,43989.0,43982.0,0.358294]
[1646268279203,0.33139886,43988.0,43982.0,0.358294]
[1646268279401,0.001,43989.0,43982.0,0.358294]
[1646268279803,0.21367787,43989.0,43982.0,0.358294]
[1646268280004,0.21367787,43989.0,43988.0,0.286116]
[1646268280202,0.21367787,43989.0,43988.0,0.312544]
[1646268280708,0.21367787,43989.0,43988.0,0.313544]
[1646268280903,0.21367787,43989.0,43988.0,0.28228961]
[1646268281845,0.20457787,43989.0,43988.0,0.28228961]
[1646268282045,0.19957787,43989.0,43988.0,0.28128961]
[1646268282445,0.19957787,43989.0,43988.0,0.55584153]
[1646268282846,0.20057787,43989.0,43988.0,0.55584153]
[1646268283046,0.20057787,43989.0,43988.0,0.28128961]
[1646268284047,0.19957787,43989.0,43988.0,0.28128961]
[1646268284847,0.20057787,43989.0,43988.0,0.28128961]
[1646268286099,0.19957787,43989.0,43988.0,0.28128961]
[1646268286799,0.20057787,43989.0,43988.0,0.28128961]
[1646268287606,0.001,43989.0,43988.0,0.28128961]
[1646268288003,0.001,43990.0,43987.0,0.21101024]
[1646268288205,0.001,43990.0,43988.0,0.326993]
[1646268288804,0.001,43990.0,43988.0,0.5429232]
[1646268289481,0.001,43990.0,43988.0,0.328993]
[1646268289678,0.001,43990.0,43988.0,0.283293]
[1646268290075,0.001,43990.0,43988.0,0.281293]
[1646268292078,0.001,43990.0,43988.0,0.49753621]
[1646268292806,0.001,43990.0,43988.0,0.50053621]
[1646268294007,0.001,43990.0,43988.0,0.49753621]
[1646268294609,0.001,43990.0,43988.0,0.281293]
[1646268295110,0.001,43990.0,43982.0,0.281332]
[1646268295309,0.18915823,43988.0,43982.0,0.281332]
[1646268295507,0.056874,43984.0,43982.0,0.281332]
[1646268295709,0.056874,43984.0,43982.0,0.49341818]
[1646268297160,0.3,43987.0,43984.0,0.34445574]
[1646268297359,0.18915823,43989.0,43984.0,0.34445574]
[1646268297558,0.00019899,43985.0,43984.0,0.34445574]
[1646268298360,0.113743,43989.0,43984.0,0.34445574]
[1646268298560,0.001,43985.0,43984.0,0.34445574]
[1646268299364,0.00019899,43987.0,43986.0,0.17556741]
[1646268299563,0.001,43990.0,43986.0,0.45687641]
[1646268299765,0.001,43990.0,43987.0,0.2813]
[1646268300403,0.001,43990.0,43986.0,0.002]
[1646268300805,0.7,43989.0,43984.0,0.06313174]
[1646268301006,0.06669495,43987.0,43985.0,0.281315]
[1646268301313,0.45254288,43987.0,43984.0,0.06313174]
[1646268301509,0.64564524,43987.0,43984.0,0.06313174]
[1646268302208,0.64764524,43987.0,43984.0,0.06313174]
[1646268302410,0.92978607,43987.0,43984.0,0.06313174]
[1646268302807,0.17337592,43986.0,43984.0,0.06313174]
[1646268303006,0.20024934,43985.0,43984.0,0.06313174]
[1646268303206,0.50024934,43985.0,43984.0,0.06313174]
[1646268304257,0.004,43985.0,43984.0,0.06313174]
[1646268305055,0.19317045,43985.0,43984.0,0.06313174]
[1646268305256,0.004,43985.0,43984.0,0.06313174]
[1646268305556,0.18917045,43987.0,43984.0,0.06313174]
[1646268305759,0.18917045,43987.0,43985.0,0.281316]
[1646268305956,0.00021469,43987.0,43984.0,0.06313174]
[1646268306155,0.19038514,43987.0,43986.0,0.281309]
[1646268306363,0.19038514,43987.0,43984.0,0.06313174]
[1646268306556,0.19038514,43987.0,43985.0,0.281315]
[1646268306853,0.19017045,43987.0,43985.0,0.281317]
[1646268307055,0.18917045,43986.0,43985.0,0.281317]
[1646268307355,0.00010493,43988.0,43984.0,0.06313174]
[1646268307554,0.00010493,43988.0,43985.0,0.281316]
[1646268307555,0.18918775,43986.0,43985.0,0.281316]
[1646268307812,0.18918775,43987.0,43985.0,0.281316]
[1646268308011,0.00010493,43988.0,43985.0,0.281316]
[1646268308012,0.18918775,43986.0,43985.0,0.281316]
[1646268308414,0.23664827,43988.0,43985.0,0.282316]
[1646268308618,0.23664827,43988.0,43985.0,0.001]
[1646268309017,0.18920223,43986.0,43985.0,0.001]
[1646268309213,0.39980874,43988.0,43985.0,0.001]
[1646268309416,0.23644083,43987.0,43986.0,0.16642166]
[1646268309815,0.23664828,43988.0,43986.0,0.16642166]
[1646268310218,0.23844083,43987.0,43986.0,0.16642166]
[1646268310816,0.23844083,43987.0,43986.0,0.39642166]
[1646268310817,0.002,43987.0,43986.0,0.39642166]
[1646268311419,0.23644083,43987.0,43986.0,0.39642166]
[1646268311895,0.23644083,43988.0,43986.0,0.39642166]
[1646268312093,0.00020082,43989.0,43986.0,0.39642166]
[1646268312094,0.00020082,43989.0,43987.0,0.281302]
[1646268312294,0.18920602,43988.0,43987.0,0.281302]
[1646268312593,0.18940684,43989.0,43987.0,0.281302]
[1646268312994,0.18920602,43989.0,43988.0,0.28061071]
[1646268313194,0.18920602,43989.0,43988.0,0.56190371]
[1646268314793,0.18920602,43989.0,43988.0,0.72832537]
[1646268315194,0.19020602,43990.0,43989.0,0.281286]
[1646268315404,0.19020602,43990.0,43989.0,0.421286]
[1646268316304,0.19020602,43990.0,43989.0,0.424286]
[1646268316710,0.19020595,43990.0,43989.0,0.424286]
[1646268317506,0.19020595,43990.0,43989.0,0.421286]
[1646268318206,0.19020595,43990.0,43989.0,0.424286]
[1646268318909,0.19020595,43990.0,43989.0,0.284286]
[1646268319162,0.19020595,43990.0,43989.0,0.33825404]
[1646268319562,0.19020595,43990.0,43989.0,0.33525404]
[1646268319762,0.19020595,43990.0,43989.0,0.33525342]
[1646268320164,0.19020595,43990.0,43989.0,0.50167508]
[1646268321365,0.001,43990.0,43989.0,0.50167508]
[1646268322370,0.001,43990.0,43989.0,0.94737508]
[1646268322567,0.00220124,43992.0,43989.0,1.51837508]
[1646268322568,0.002,43992.0,43989.0,1.51837508]
[1646268322824,0.00210438,43992.0,43991.0,0.711]
[1646268323026,0.00210438,43992.0,43991.0,1.337969]
[1646268323225,0.001,43995.0,43991.0,1.1567]
[1646268323423,0.001,43995.0,43994.0,0.14]
[1646268323624,0.001,43995.0,43994.0,0.553756]
[1646268323828,0.00987677,44000.0,43995.0,0.981239]
[1646268324025,0.002,44000.0,43998.0,0.571]
[1646268324325,0.002,44000.0,43999.0,0.82687065]
[1646268324628,0.002,44000.0,43999.0,1.09787065]
[1646268324824,0.002,44000.0,43999.0,1.30585065]
[1646268325429,0.002,44000.0,43999.0,1.37227231]
[1646268325629,0.002,44000.0,43999.0,1.47227231]
[1646268326567,0.001,44007.0,44001.0,0.281188]
[1646268326764,0.001,44007.0,44005.0,0.14]
[1646268326964,0.001,44007.0,44006.0,0.91107127]
[1646268327167,0.001,44007.0,44006.0,0.40611858]
[1646268327364,0.001,44007.0,44006.0,0.50611858]
[1646268328363,0.001,44007.0,44006.0,0.51011858]
[1646268328764,0.001,44007.0,44006.0,0.81011858]
[1646268329564,0.001,44007.0,44006.0,0.80611858]
[1646268329771,0.001,44007.0,44006.0,0.41951129]
[1646268330165,0.001,44007.0,44006.0,0.19909271]
[1646268330404,0.001,44007.0,44006.0,0.09909271]
[1646268330603,0.001,44007.0,44006.0,0.26551437]
[1646268331604,0.001,44007.0,44006.0,0.54955655]
[1646268331802,0.001,44007.0,44006.0,0.64955655]
[1646268332412,0.001,44007.0,44006.0,0.59616384]
[1646268332606,0.001,44007.0,44006.0,0.64955534]
[1646268333305,0.00362007,44007.0,44006.0,0.64955534]
[1646268334163,0.00362007,44007.0,44006.0,0.94955534]
[1646268335567,0.00362007,44007.0,44006.0,0.26551316]
[1646268336367,0.00362007,44007.0,44006.0,0.49551316]
[1646268336768,0.00362007,44007.0,44006.0,0.73092026]
[1646268338412,0.00362007,44007.0,44006.0,0.73492026]
[1646268338713,0.00362007,44007.0,44006.0,0.68922026]
[1646268339716,0.00362007,44007.0,44006.0,0.68522026]
[1646268341560,0.00362007,44007.0,44006.0,0.39642166]
[1646268341761,0.00362007,44007.0,43998.0,0.195]
[1646268341762,0.23474275,44005.0,43998.0,0.195]
[1646268341962,0.23474275,44005.0,43994.0,0.1801]
[1646268342263,0.23474275,44005.0,43997.0,0.05684206]
[1646268342462,0.23474275,44005.0,44000.0,0.22065909]
[1646268343261,0.23494729,44005.0,44000.0,0.22065909]
[1646268344266,0.23474275,44005.0,44000.0,0.22065909]
[1646268344466,0.23494729,44005.0,44000.0,0.004]
[1646268345312,0.23474275,44005.0,44000.0,0.004]
[1646268345709,0.23494729,44005.0,44001.0,0.2101623]
[1646268345908,0.23494729,44005.0,43997.0,0.05684206]
[1646268346511,0.23474275,44005.0,43996.0,0.304]
[1646268346713,0.23474275,44005.0,44000.0,0.23]
[1646268346912,0.00020455,44004.0,44000.0,0.23]
[1646268347712,0.23474275,44005.0,44000.0,0.23]
[1646268348112,0.00020455,44004.0,44000.0,0.23]
[1646268348522,0.00020455,44004.0,44002.0,0.02275]
[1646268348718,0.00216399,44004.0,44003.0,0.06845]
[1646268348912,0.23474275,44005.0,44004.0,0.7]
[1646268349176,0.23474275,44005.0,44004.0,0.0457]
[1646268349375,0.23474275,44005.0,44004.0,0.1457]
[1646268349574,0.23474275,44005.0,44004.0,0.2857]
[1646268349778,0.23474275,44005.0,44004.0,0.4837]
[1646268350375,0.23474275,44005.0,44004.0,0.4897]
[1646268350678,0.23474275,44005.0,44004.0,0.846522]
[1646268351574,0.23474275,44005.0,44004.0,0.840522]
[1646268352379,0.23474275,44005.0,44004.0,0.868272]
[1646268352578,0.23474275,44005.0,44004.0,0.7887]
[1646268352816,0.23474275,44005.0,44004.0,0.845522]
[1646268353609,0.23474275,44005.0,44004.0,0.840522]
[1646268354211,0.17151544,44005.0,44004.0,1.558672]
[1646268354410,0.17151544,44005.0,44004.0,1.563672]
[1646268354612,0.17151544,44005.0,44004.0,1.52362884]
[1646268356211,0.17151544,44005.0,44004.0,1.51862884]
[1646268356413,0.17151544,44005.0,44004.0,1.52462884]
[1646268357653,0.17151544,44005.0,44004.0,1.51862884]
[1646268363030,0.17151544,44005.0,44004.0,0.50047884]
[1646268363232,0.17151544,44005.0,44004.0,0.19995684]
[1646268363631,0.17151544,44005.0,44004.0,0.09995684]
[1646268370616,0.33011082,44005.0,44004.0,0.09995684]